[Event "*** SCC Grand Prix: Titled Tuesday Blitz"]
[Site "Chess.com"]
[Date "2020.06.02"]
[Round "6"]
[White "Skatchkov_V"]
[Black "AGW2016"]
[Result "1-0"]
[WhiteElo "2547"]
[BlackElo "2317"]
[TimeControl "180+1"]
[EndTime "11:07:53 PDT"]
[Termination "Skatchkov_V won by resignation"]

1. Nf3 {[%clk 0:03:00.9]} 1... Nf6 {[%clk 0:02:59.7]} 2. g3 {[%clk 0:03:01.1]}
2... g6 {[%clk 0:02:58.5]} 3. Bg2 {[%clk 0:03:00]} 3... Bg7 {[%clk 0:02:59.1]}
4. d4 {[%clk 0:03:00.5]} 4... O-O {[%clk 0:02:59]} 5. O-O {[%clk 0:03:00.5]}
5... d6 {[%clk 0:02:59.6]} 6. c4 {[%clk 0:03:00.7]} 6... c5 {[%clk 0:02:59.1]}
7. Nc3 {[%clk 0:02:59.5]} 7... Nc6 {[%clk 0:02:58.5]} 8. d5 {[%clk 0:02:58.6]}
8... Na5 {[%clk 0:02:58.9]} 9. Qd3 {[%clk 0:02:58.6]} 9... a6 {[%clk 0:02:58]}
10. b3 {[%clk 0:02:52.1]} 10... Rb8 {[%clk 0:02:53.2]} 11. Bb2 {[%clk
0:02:51.3]} 11... Bd7 {[%clk 0:02:51.9]} 12. Nd2 {[%clk 0:02:50.3]} 12... b5
{[%clk 0:02:48.7]} 13. Rab1 {[%clk 0:02:49.8]} 13... Qc7 {[%clk 0:02:35.7]} 14.
e4 {[%clk 0:02:46.9]} 14... Ng4 {[%clk 0:02:31.6]} 15. h3 {[%clk 0:02:29.3]}
15... Ne5 {[%clk 0:02:11.4]} 16. Qe2 {[%clk 0:02:24.3]} 16... bxc4 {[%clk
0:02:07.8]} 17. bxc4 {[%clk 0:02:25.2]} 17... Rb4 {[%clk 0:01:38.1]} 18. a3
{[%clk 0:02:24.2]} 18... Rxc4 {[%clk 0:01:36]} 19. f4 {[%clk 0:02:09.7]} 19...
Rxc3 {[%clk 0:01:36.1]} 20. Bxc3 {[%clk 0:02:10.6]} 20... Nec4 {[%clk
0:01:36.9]} 21. Bxg7 {[%clk 0:02:05.2]} 21... Kxg7 {[%clk 0:01:37.1]} 22. Nxc4
{[%clk 0:02:03.4]} 22... Bb5 {[%clk 0:01:37.5]} 23. Qb2+ {[%clk 0:02:00.7]}
23... f6 {[%clk 0:01:37.7]} 24. Nxa5 {[%clk 0:01:58.1]} 24... Qxa5 {[%clk
0:01:38.6]} 25. Rfc1 {[%clk 0:01:53.9]} 25... h5 {[%clk 0:01:32.8]} 26. Qc3
{[%clk 0:01:52.7]} 26... Qa4 {[%clk 0:01:26]} 27. Qb3 {[%clk 0:01:40.6]} 27...
Qd4+ {[%clk 0:01:24.6]} 28. Kh2 {[%clk 0:01:38.8]} 28... h4 {[%clk 0:01:25.2]}
29. gxh4 {[%clk 0:01:38.6]} 29... Qf2 {[%clk 0:01:25.4]} 30. Qg3 {[%clk
0:01:37.3]} 30... Qd2 {[%clk 0:01:21.6]} 31. h5 {[%clk 0:01:35.5]} 31... g5
{[%clk 0:01:21.9]} 32. Rd1 {[%clk 0:01:31.3]} 32... Qxf4 {[%clk 0:01:16.1]} 33.
Qxf4 {[%clk 0:01:30.9]} 33... gxf4 {[%clk 0:01:17]} 34. Bf3 {[%clk 0:01:30.9]}
34... Kh6 {[%clk 0:01:17]} 35. Rg1 {[%clk 0:01:29.9]} 35... c4 {[%clk
0:01:17.6]} 36. Rg6+ {[%clk 0:01:24.8]} 36... Kh7 {[%clk 0:01:16.9]} 37. Rbg1
{[%clk 0:01:22.9]} 37... c3 {[%clk 0:01:17.2]} 38. Rg7+ {[%clk 0:01:20.2]} 38...
Kh8 {[%clk 0:01:16.3]} 39. h6 {[%clk 0:01:17]} 39... c2 {[%clk 0:01:15.6]} 40.
Bg4 {[%clk 0:01:16.7]} 40... f5 {[%clk 0:00:52.5]} 41. Bxf5 {[%clk 0:01:12.7]}
41... Rxf5 {[%clk 0:00:52.3]} 42. exf5 {[%clk 0:01:13.6]} 42... f3 {[%clk
0:00:52.9]} 43. Kg3 {[%clk 0:01:11.7]} 43... Be2 {[%clk 0:00:52]} 44. Rxe7
{[%clk 0:01:09]} 44... Bd1 {[%clk 0:00:51.4]} 45. Rc7 {[%clk 0:01:08.9]} 45...
f2 {[%clk 0:00:51.5]} 46. Kxf2 {[%clk 0:01:08.4]} 46... c1=Q {[%clk 0:00:50.6]}
47. Rxc1 {[%clk 0:01:07.2]} 1-0

[Event "*** SCC Grand Prix: Titled Tuesday Blitz"]
[Site "Chess.com"]
[Date "2020.06.02"]
[Round "6"]
[White "kudesnik84"]
[Black "Savagelittlemole"]
[Result "0-1"]
[WhiteElo "2375"]
[BlackElo "2585"]
[TimeControl "180+1"]
[EndTime "11:07:54 PDT"]
[Termination "Savagelittlemole won on time"]

1. e4 {[%clk 0:03:00.9]} 1... c5 {[%clk 0:02:59.7]} 2. Nf3 {[%clk 0:02:58.6]}
2... d6 {[%clk 0:02:59.5]} 3. Bb5+ {[%clk 0:02:40.1]} 3... Nd7 {[%clk
0:02:58.8]} 4. O-O {[%clk 0:02:33.5]} 4... a6 {[%clk 0:02:59.1]} 5. Bxd7+ {[%clk
0:02:31.4]} 5... Bxd7 {[%clk 0:03:00]} 6. c4 {[%clk 0:02:27.3]} 6... Nf6 {[%clk
0:02:59.9]} 7. Nc3 {[%clk 0:02:26.9]} 7... g6 {[%clk 0:02:58.5]} 8. d4 {[%clk
0:02:18.5]} 8... cxd4 {[%clk 0:02:58.2]} 9. Nxd4 {[%clk 0:02:19.4]} 9... Bg7
{[%clk 0:02:58.2]} 10. b3 {[%clk 0:01:44.4]} 10... O-O {[%clk 0:02:57.4]} 11. f3
{[%clk 0:01:41.6]} 11... Rc8 {[%clk 0:02:54.4]} 12. a4 {[%clk 0:01:36.3]} 12...
Qb6 {[%clk 0:02:46.7]} 13. Be3 {[%clk 0:01:35.8]} 13... Qb4 {[%clk 0:02:20.7]}
14. Nde2 {[%clk 0:01:18.9]} 14... b5 {[%clk 0:02:08.3]} 15. axb5 {[%clk
0:00:40.7]} 15... axb5 {[%clk 0:02:09.2]} 16. Nxb5 {[%clk 0:00:40]} 16... Bxb5
{[%clk 0:02:07.6]} 17. cxb5 {[%clk 0:00:40.9]} 17... Qxb5 {[%clk 0:02:03.3]} 18.
Ra7 {[%clk 0:00:40]} 18... Rfe8 {[%clk 0:01:50]} 19. Nd4 {[%clk 0:00:38.1]}
19... Qb4 {[%clk 0:01:50.1]} 20. Ra4 {[%clk 0:00:30.3]} 20... Qb7 {[%clk
0:01:48.8]} 21. b4 {[%clk 0:00:22.7]} 21... Rc3 {[%clk 0:01:48.4]} 22. Qd2
{[%clk 0:00:20.6]} 22... Rec8 {[%clk 0:01:48.5]} 23. Rfa1 {[%clk 0:00:17.8]}
23... Nh5 {[%clk 0:01:32.9]} 24. b5 {[%clk 0:00:15.8]} 24... Bxd4 {[%clk
0:01:06.5]} 25. Bxd4 {[%clk 0:00:15.4]} 25... Rc2 {[%clk 0:01:06.8]} 0-1

[Event "*** SCC Grand Prix: Titled Tuesday Blitz"]
[Site "Chess.com"]
[Date "2020.06.02"]
[Round "6"]
[White "gui_borba"]
[Black "lukas_111111"]
[Result "0-1"]
[WhiteElo "2318"]
[BlackElo "2535"]
[TimeControl "180+1"]
[EndTime "11:07:54 PDT"]
[Termination "lukas_111111 won by checkmate"]

1. d4 {[%clk 0:03:00.9]} 1... e6 {[%clk 0:02:59.9]} 2. e4 {[%clk 0:02:59.9]}
2... d5 {[%clk 0:02:59.9]} 3. e5 {[%clk 0:03:00.4]} 3... c5 {[%clk 0:02:59.6]}
4. c3 {[%clk 0:03:00.5]} 4... Nc6 {[%clk 0:03:00.1]} 5. Nf3 {[%clk 0:03:00.9]}
5... Qb6 {[%clk 0:03:00.6]} 6. a3 {[%clk 0:03:01.2]} 6... Nh6 {[%clk 0:02:56.2]}
7. b4 {[%clk 0:02:55.6]} 7... cxd4 {[%clk 0:02:54]} 8. b5 {[%clk 0:02:56.1]}
8... Na5 {[%clk 0:02:41.3]} 9. Bxh6 {[%clk 0:02:56.4]} 9... gxh6 {[%clk
0:02:40]} 10. cxd4 {[%clk 0:02:57.3]} 10... Bd7 {[%clk 0:02:39.5]} 11. Nbd2
{[%clk 0:02:57.1]} 11... Rg8 {[%clk 0:02:36]} 12. Qb1 {[%clk 0:02:55]} 12... Rg7
{[%clk 0:02:30]} 13. g3 {[%clk 0:02:46]} 13... Rc8 {[%clk 0:02:29.8]} 14. Bd3
{[%clk 0:02:45.7]} 14... Rc3 {[%clk 0:02:29.4]} 15. a4 {[%clk 0:02:38.2]} 15...
Nc4 {[%clk 0:02:23.9]} 16. Ke2 {[%clk 0:02:20.9]} 16... Nxd2 {[%clk 0:01:55.3]}
17. Kxd2 {[%clk 0:02:21.8]} 17... Qa5 {[%clk 0:01:44.6]} 18. Ke2 {[%clk
0:02:18.1]} 18... Qb4 {[%clk 0:01:29.9]} 19. Rc1 {[%clk 0:02:12.8]} 19... Rb3
{[%clk 0:01:25.5]} 20. a5 {[%clk 0:01:35]} 20... Rxb1 {[%clk 0:01:12.6]} 21.
Rcxb1 {[%clk 0:01:35.9]} 21... Qe7 {[%clk 0:01:07.9]} 22. Rc1 {[%clk 0:01:35.7]}
22... f6 {[%clk 0:00:53.7]} 23. Rc7 {[%clk 0:01:31.4]} 23... Qd8 {[%clk
0:00:49.1]} 24. Rac1 {[%clk 0:01:27.2]} 24... f5 {[%clk 0:00:48.6]} 25. Rxb7
{[%clk 0:01:06.9]} 25... Qxa5 {[%clk 0:00:47.6]} 26. Rcc7 {[%clk 0:00:57.5]}
26... Re7 {[%clk 0:00:42.8]} 27. Nd2 {[%clk 0:00:50.6]} 27... Qb4 {[%clk
0:00:41]} 28. Ke3 {[%clk 0:00:49.7]} 28... h5 {[%clk 0:00:39.5]} 29. Be2 {[%clk
0:00:49.5]} 29... Qa3+ {[%clk 0:00:28.8]} 30. Kf4 {[%clk 0:00:49]} 30... Bh6#
{[%clk 0:00:28.6]} 0-1

[Event "*** SCC Grand Prix: Titled Tuesday Blitz"]
[Site "Chess.com"]
[Date "2020.06.02"]
[Round "6"]
[White "CaspiIsrael"]
[Black "plumalka"]
[Result "1-0"]
[WhiteElo "2588"]
[BlackElo "2412"]
[TimeControl "180+1"]
[EndTime "11:07:55 PDT"]
[Termination "CaspiIsrael won by checkmate"]

1. e4 {[%clk 0:03:00.9]} 1... c5 {[%clk 0:02:59.6]} 2. Nf3 {[%clk 0:03:00.5]}
2... d6 {[%clk 0:02:59.8]} 3. d4 {[%clk 0:03:01.4]} 3... cxd4 {[%clk 0:03:00.7]}
4. Nxd4 {[%clk 0:03:02.2]} 4... Nf6 {[%clk 0:03:01.1]} 5. Nc3 {[%clk 0:03:02.6]}
5... Bd7 {[%clk 0:03:01.6]} 6. f3 {[%clk 0:03:02]} 6... e5 {[%clk 0:03:00.5]} 7.
Nb3 {[%clk 0:03:01.7]} 7... a5 {[%clk 0:02:59]} 8. a4 {[%clk 0:03:01.2]} 8...
Bc6 {[%clk 0:02:56]} 9. Be3 {[%clk 0:03:00.1]} 9... Be7 {[%clk 0:02:55.4]} 10.
Qd2 {[%clk 0:03:00.2]} 10... Na6 {[%clk 0:02:55.1]} 11. O-O-O {[%clk 0:02:44.4]}
11... Nb4 {[%clk 0:02:52.8]} 12. g4 {[%clk 0:02:44.1]} 12... O-O {[%clk
0:02:35.1]} 13. g5 {[%clk 0:02:44.2]} 13... Nh5 {[%clk 0:02:34.6]} 14. Rg1
{[%clk 0:02:43.1]} 14... Nf4 {[%clk 0:02:34.2]} 15. Bxf4 {[%clk 0:02:42.1]}
15... exf4 {[%clk 0:02:34.3]} 16. Qxf4 {[%clk 0:02:42.4]} 16... Qb6 {[%clk
0:02:06.1]} 17. Nd4 {[%clk 0:02:35.8]} 17... d5 {[%clk 0:01:59.3]} 18. e5 {[%clk
0:02:34.6]} 18... Bc5 {[%clk 0:01:51.6]} 19. Bb5 {[%clk 0:02:23.1]} 19... Rae8
{[%clk 0:01:44.5]} 20. Rge1 {[%clk 0:02:18.8]} 20... Qc7 {[%clk 0:01:42.7]} 21.
Kb1 {[%clk 0:02:13.2]} 21... Ba7 {[%clk 0:01:32.5]} 22. Qg3 {[%clk 0:02:04.9]}
22... Bb8 {[%clk 0:01:14.7]} 23. f4 {[%clk 0:02:04.6]} 23... Qc8 {[%clk
0:00:55.3]} 24. h4 {[%clk 0:02:03.3]} 24... Bd7 {[%clk 0:00:51.8]} 25. Bxd7
{[%clk 0:02:01.1]} 25... Qxd7 {[%clk 0:00:52.7]} 26. h5 {[%clk 0:02:00.9]} 26...
Nc6 {[%clk 0:00:47.7]} 27. Ndb5 {[%clk 0:01:55.7]} 27... d4 {[%clk 0:00:43.8]}
28. Ne4 {[%clk 0:01:54.6]} 28... Kh8 {[%clk 0:00:39.2]} 29. h6 {[%clk
0:01:54.2]} 29... Qf5 {[%clk 0:00:36.1]} 30. hxg7+ {[%clk 0:01:53.6]} 30... Kxg7
{[%clk 0:00:36.1]} 31. Nbd6 {[%clk 0:01:47.8]} 31... Bxd6 {[%clk 0:00:34.1]} 32.
Nxd6 {[%clk 0:01:48.7]} 32... Qd7 {[%clk 0:00:28.4]} 33. Qh4 {[%clk 0:01:37.7]}
33... Re6 {[%clk 0:00:25.9]} 34. Rh1 {[%clk 0:01:36.9]} 34... Rh8 {[%clk
0:00:25.1]} 35. Ne4 {[%clk 0:01:21.4]} 35... Nb4 {[%clk 0:00:24.5]} 36. Nf6
{[%clk 0:01:14.9]} 36... Qxa4 {[%clk 0:00:23.9]} 37. Qh6# {[%clk 0:01:14.4]} 1-0

[Event "*** SCC Grand Prix: Titled Tuesday Blitz"]
[Site "Chess.com"]
[Date "2020.06.02"]
[Round "6"]
[White "mishikomchedlishvili"]
[Black "Riptide27"]
[Result "1-0"]
[WhiteElo "2774"]
[BlackElo "2598"]
[TimeControl "180+1"]
[EndTime "11:07:56 PDT"]
[Termination "mishikomchedlishvili won by resignation"]

1. d4 {[%clk 0:03:00.9]} 1... Nf6 {[%clk 0:02:59.8]} 2. Bg5 {[%clk 0:03:00.5]}
2... g6 {[%clk 0:02:58.8]} 3. Nc3 {[%clk 0:02:58.5]} 3... d5 {[%clk 0:02:55.5]}
4. e3 {[%clk 0:02:58.1]} 4... c6 {[%clk 0:02:48.8]} 5. Nf3 {[%clk 0:02:53.2]}
5... Bg4 {[%clk 0:02:46.7]} 6. h3 {[%clk 0:02:50.5]} 6... Bxf3 {[%clk
0:02:45.9]} 7. Qxf3 {[%clk 0:02:50.5]} 7... Nbd7 {[%clk 0:02:46.4]} 8. O-O-O
{[%clk 0:02:50.4]} 8... Qa5 {[%clk 0:02:39]} 9. Kb1 {[%clk 0:02:48.5]} 9...
O-O-O {[%clk 0:02:36.6]} 10. Bf4 {[%clk 0:02:43.4]} 10... Bg7 {[%clk 0:02:35.1]}
11. g4 {[%clk 0:02:33.5]} 11... h6 {[%clk 0:02:31.2]} 12. Qg3 {[%clk 0:02:29.3]}
12... g5 {[%clk 0:02:21.7]} 13. Be5 {[%clk 0:02:20.2]} 13... Nxe5 {[%clk
0:02:21.2]} 14. Qxe5 {[%clk 0:02:19.8]} 14... Rd7 {[%clk 0:02:00.5]} 15. Bd3
{[%clk 0:02:16.9]} 15... Rg8 {[%clk 0:01:51]} 16. Qg3 {[%clk 0:02:15.7]} 16...
e6 {[%clk 0:01:47.9]} 17. Ne2 {[%clk 0:02:14.9]} 17... Bf8 {[%clk 0:01:45]} 18.
c3 {[%clk 0:02:13.6]} 18... Ne8 {[%clk 0:01:40.2]} 19. h4 {[%clk 0:02:12.4]}
19... b5 {[%clk 0:01:30.7]} 20. hxg5 {[%clk 0:02:11.3]} 20... hxg5 {[%clk
0:01:29.9]} 21. Nc1 {[%clk 0:02:11.3]} 21... Qc7 {[%clk 0:01:28.7]} 22. Qf3
{[%clk 0:02:11.2]} 22... a5 {[%clk 0:01:24.1]} 23. Rh7 {[%clk 0:02:09.8]} 23...
a4 {[%clk 0:01:21.5]} 24. Rdh1 {[%clk 0:02:08.6]} 24... Bg7 {[%clk 0:01:17.7]}
25. a3 {[%clk 0:02:05.4]} 25... Nf6 {[%clk 0:01:14.9]} 26. R7h3 {[%clk
0:02:04.2]} 26... Kb7 {[%clk 0:01:09.4]} 27. Bc2 {[%clk 0:02:04.2]} 27... Ka7
{[%clk 0:01:04.4]} 28. Nd3 {[%clk 0:02:04.3]} 28... Ne4 {[%clk 0:01:04.5]} 29.
Ka2 {[%clk 0:02:00.7]} 29... Rf8 {[%clk 0:01:00.6]} 30. Rh7 {[%clk 0:02:00.4]}
30... f5 {[%clk 0:01:00.6]} 31. gxf5 {[%clk 0:01:54.4]} 31... exf5 {[%clk
0:01:01.5]} 32. Nb4 {[%clk 0:01:52.4]} 32... g4 {[%clk 0:00:47]} 33. Qe2 {[%clk
0:01:47.2]} 33... Re7 {[%clk 0:00:45.7]} 34. Bxe4 {[%clk 0:01:44.9]} 34... Rxe4
{[%clk 0:00:43.4]} 35. Nxc6+ {[%clk 0:01:38.7]} 35... Qxc6 {[%clk 0:00:42.3]}
36. Rxg7+ {[%clk 0:01:38.8]} 36... Kb6 {[%clk 0:00:42.2]} 37. Rhh7 {[%clk
0:01:36.7]} 37... f4 {[%clk 0:00:22.4]} 38. Rb7+ {[%clk 0:01:33.6]} 38... Ka6
{[%clk 0:00:21.5]} 39. Ra7+ {[%clk 0:01:33]} 39... Kb6 {[%clk 0:00:21.2]} 40.
Rhb7+ {[%clk 0:01:33.6]} 40... Qxb7 {[%clk 0:00:20.8]} 41. Rxb7+ {[%clk
0:01:33.8]} 41... Kxb7 {[%clk 0:00:21.7]} 42. Qxb5+ {[%clk 0:01:33.8]} 1-0

[Event "*** SCC Grand Prix: Titled Tuesday Blitz"]
[Site "Chess.com"]
[Date "2020.06.02"]
[Round "6"]
[White "dianamirza"]
[Black "mikerahal"]
[Result "0-1"]
[WhiteElo "2004"]
[BlackElo "2262"]
[TimeControl "180+1"]
[EndTime "11:07:58 PDT"]
[Termination "mikerahal won by resignation"]

1. d4 {[%clk 0:03:00.9]} 1... Nf6 {[%clk 0:02:58.5]} 2. Nf3 {[%clk 0:02:58.6]}
2... g6 {[%clk 0:02:58.1]} 3. c4 {[%clk 0:02:57.2]} 3... Bg7 {[%clk 0:02:57]} 4.
Nc3 {[%clk 0:02:58.1]} 4... O-O {[%clk 0:02:56]} 5. e4 {[%clk 0:02:58.3]} 5...
d6 {[%clk 0:02:53.4]} 6. Be2 {[%clk 0:02:56.5]} 6... e5 {[%clk 0:02:53.6]} 7. d5
{[%clk 0:02:56.3]} 7... a5 {[%clk 0:02:47]} 8. O-O {[%clk 0:02:54.3]} 8... Na6
{[%clk 0:02:47.2]} 9. Bg5 {[%clk 0:02:48.2]} 9... Qe8 {[%clk 0:02:38.4]} 10. Nb5
{[%clk 0:02:42.8]} 10... Bd7 {[%clk 0:02:36.7]} 11. Qc2 {[%clk 0:02:21.8]} 11...
h5 {[%clk 0:02:24.6]} 12. a3 {[%clk 0:02:06.2]} 12... Nh7 {[%clk 0:02:23.5]} 13.
Bd2 {[%clk 0:02:03]} 13... f5 {[%clk 0:02:22.3]} 14. Bxa5 {[%clk 0:01:41.4]}
14... b6 {[%clk 0:02:18.6]} 15. Bc3 {[%clk 0:01:22.5]} 15... g5 {[%clk 0:01:53]}
16. Nd2 {[%clk 0:00:59.8]} 16... f4 {[%clk 0:01:49.7]} 17. f3 {[%clk 0:00:56.8]}
17... g4 {[%clk 0:01:49.2]} 18. b4 {[%clk 0:00:49.2]} 18... Qg6 {[%clk
0:01:26.9]} 19. Nb3 {[%clk 0:00:31.3]} 19... Bh6 {[%clk 0:01:20.8]} 20. Bd2
{[%clk 0:00:25.5]} 20... Rf7 {[%clk 0:01:19.5]} 21. c5 {[%clk 0:00:24.4]} 21...
Rg7 {[%clk 0:01:17.7]} 22. cxd6 {[%clk 0:00:20.6]} 22... cxd6 {[%clk 0:01:17.7]}
23. Nc7 {[%clk 0:00:17]} 23... Nxc7 {[%clk 0:01:12.8]} 24. Qxc7 {[%clk
0:00:17.9]} 24... gxf3 {[%clk 0:01:04.4]} 25. Bxf3 {[%clk 0:00:18.8]} 25... Bh3
{[%clk 0:01:04.5]} 26. Rf2 {[%clk 0:00:17.2]} 26... Rxc7 {[%clk 0:01:03.1]} 27.
Raf1 {[%clk 0:00:13.1]} 27... Bg4 {[%clk 0:01:02.7]} 28. Kh1 {[%clk 0:00:12.2]}
28... Ng5 {[%clk 0:01:01.8]} 29. Bxg4 {[%clk 0:00:10.9]} 29... hxg4 {[%clk
0:01:02.7]} 0-1

[Event "*** SCC Grand Prix: Titled Tuesday Blitz"]
[Site "Chess.com"]
[Date "2020.06.02"]
[Round "6"]
[White "Jospem"]
[Black "MYMChessAcademy"]
[Result "1-0"]
[WhiteElo "2861"]
[BlackElo "2439"]
[TimeControl "180+1"]
[EndTime "11:08:00 PDT"]
[Termination "Jospem won on time"]

1. e4 {[%clk 0:03:00.9]} 1... d5 {[%clk 0:02:57.2]} 2. exd5 {[%clk 0:03:01]}
2... Qxd5 {[%clk 0:02:58.1]} 3. Nc3 {[%clk 0:03:01.6]} 3... Qa5 {[%clk
0:02:58.7]} 4. d4 {[%clk 0:03:02.1]} 4... Nf6 {[%clk 0:02:59.3]} 5. Nf3 {[%clk
0:03:02.7]} 5... Nc6 {[%clk 0:02:59.7]} 6. Bb5 {[%clk 0:03:01.1]} 6... Nd5
{[%clk 0:02:58.2]} 7. Qd3 {[%clk 0:02:50.7]} 7... a6 {[%clk 0:02:53.6]} 8. Bc4
{[%clk 0:02:43.7]} 8... Nxc3 {[%clk 0:02:52.3]} 9. bxc3 {[%clk 0:02:42.7]} 9...
Bf5 {[%clk 0:02:50.9]} 10. Qe3 {[%clk 0:02:36.1]} 10... Bxc2 {[%clk 0:02:39.4]}
11. O-O {[%clk 0:02:32.2]} 11... Bg6 {[%clk 0:02:36.7]} 12. d5 {[%clk
0:02:31.7]} 12... Na7 {[%clk 0:02:28.1]} 13. Ne5 {[%clk 0:02:28.7]} 13... Nc8
{[%clk 0:02:25.9]} 14. Bb3 {[%clk 0:02:22.3]} 14... Qb6 {[%clk 0:01:48.5]} 15.
Qh3 {[%clk 0:02:08.6]} 15... Qd6 {[%clk 0:01:37.5]} 16. Bf4 {[%clk 0:01:54]}
16... Nb6 {[%clk 0:01:24]} 17. c4 {[%clk 0:01:39.1]} 17... Qf6 {[%clk
0:01:18.7]} 18. Ba4+ {[%clk 0:01:33.1]} 18... Kd8 {[%clk 0:00:26.9]} 19. c5
{[%clk 0:00:59.9]} 19... Qxf4 {[%clk 0:00:25.2]} 20. cxb6 {[%clk 0:00:57.6]}
20... Bf5 {[%clk 0:00:20.9]} 21. Nxf7+ {[%clk 0:00:57.9]} 21... Kc8 {[%clk
0:00:20.5]} 22. Qc3 {[%clk 0:00:51.1]} 22... Rg8 {[%clk 0:00:17.7]} 23. Rac1
{[%clk 0:00:51.2]} 1-0

[Event "*** SCC Grand Prix: Titled Tuesday Blitz"]
[Site "Chess.com"]
[Date "2020.06.02"]
[Round "6"]
[White "Gerodot71"]
[Black "Matveev_Vladimir"]
[Result "1-0"]
[WhiteElo "2376"]
[BlackElo "2560"]
[TimeControl "180+1"]
[EndTime "11:08:00 PDT"]
[Termination "Gerodot71 won by resignation"]

1. d4 {[%clk 0:03:00.9]} 1... Nf6 {[%clk 0:02:59.6]} 2. c4 {[%clk 0:03:01]} 2...
g6 {[%clk 0:02:59.7]} 3. Nc3 {[%clk 0:03:00.5]} 3... Bg7 {[%clk 0:03:00.4]} 4.
e4 {[%clk 0:02:59.9]} 4... O-O {[%clk 0:03:00.9]} 5. Be2 {[%clk 0:03:00.2]} 5...
d6 {[%clk 0:03:00.9]} 6. Be3 {[%clk 0:02:59.6]} 6... e5 {[%clk 0:02:58.4]} 7. d5
{[%clk 0:02:59.1]} 7... a5 {[%clk 0:02:59]} 8. g4 {[%clk 0:02:58.1]} 8... Na6
{[%clk 0:02:57.3]} 9. h4 {[%clk 0:02:57.7]} 9... Nc5 {[%clk 0:02:56.8]} 10. f3
{[%clk 0:02:57.2]} 10... h5 {[%clk 0:02:55.2]} 11. g5 {[%clk 0:02:56.5]} 11...
Nh7 {[%clk 0:02:55.2]} 12. Qd2 {[%clk 0:02:56.4]} 12... c6 {[%clk 0:02:54.1]}
13. Nh3 {[%clk 0:02:55.4]} 13... a4 {[%clk 0:02:36.8]} 14. Nf2 {[%clk
0:02:53.7]} 14... cxd5 {[%clk 0:02:31.5]} 15. cxd5 {[%clk 0:02:48.9]} 15... Bd7
{[%clk 0:02:23.3]} 16. Bb5 {[%clk 0:02:16.4]} 16... Rc8 {[%clk 0:02:11]} 17. Nd3
{[%clk 0:02:12.9]} 17... Nxd3+ {[%clk 0:02:05]} 18. Qxd3 {[%clk 0:02:13.8]}
18... a3 {[%clk 0:02:03.1]} 19. O-O-O {[%clk 0:01:54.2]} 19... axb2+ {[%clk
0:01:55.3]} 20. Kxb2 {[%clk 0:01:53.3]} 20... Rxc3 {[%clk 0:01:53.6]} 21. Qxc3
{[%clk 0:01:36.4]} 21... Bxb5 {[%clk 0:01:47.1]} 22. Rc1 {[%clk 0:01:36.2]}
22... Qa8 {[%clk 0:01:20]} 23. Qb4 {[%clk 0:01:33.7]} 23... Qa6 {[%clk
0:01:07.6]} 24. Rc7 {[%clk 0:01:28.1]} 24... Ra8 {[%clk 0:01:05.9]} 25. a3
{[%clk 0:01:26.4]} 25... Bf8 {[%clk 0:00:40]} 26. Rhc1 {[%clk 0:01:23.1]} 26...
Ba4 {[%clk 0:00:34.8]} 27. Bd2 {[%clk 0:01:01.2]} 27... Qe2 {[%clk 0:00:30.4]}
28. Rxb7 {[%clk 0:00:57.1]} 28... Qxf3 {[%clk 0:00:25.8]} 29. Rcc7 {[%clk
0:00:57]} 29... Qxe4 {[%clk 0:00:19.5]} 30. Qxe4 {[%clk 0:00:55.7]} 1-0

[Event "*** SCC Grand Prix: Titled Tuesday Blitz"]
[Site "Chess.com"]
[Date "2020.06.02"]
[Round "6"]
[White "kintoho"]
[Black "Fighter008"]
[Result "0-1"]
[WhiteElo "2358"]
[BlackElo "2564"]
[TimeControl "180+1"]
[EndTime "11:08:05 PDT"]
[Termination "Fighter008 won by resignation"]

1. e4 {[%clk 0:02:34.8]} 1... c5 {[%clk 0:02:56.1]} 2. Nf3 {[%clk 0:02:34.2]}
2... e6 {[%clk 0:02:52.4]} 3. c4 {[%clk 0:02:33.4]} 3... a6 {[%clk 0:02:51.2]}
4. Nc3 {[%clk 0:02:33.3]} 4... d6 {[%clk 0:02:51.1]} 5. d4 {[%clk 0:02:33.3]}
5... cxd4 {[%clk 0:02:52]} 6. Nxd4 {[%clk 0:02:33.6]} 6... Nf6 {[%clk
0:02:52.7]} 7. Be2 {[%clk 0:02:33.5]} 7... Be7 {[%clk 0:02:53]} 8. O-O {[%clk
0:02:33.6]} 8... Qc7 {[%clk 0:02:53.4]} 9. Be3 {[%clk 0:02:33.5]} 9... b6 {[%clk
0:02:53.4]} 10. f3 {[%clk 0:02:33.3]} 10... Bb7 {[%clk 0:02:53.6]} 11. Qe1
{[%clk 0:02:33.3]} 11... Nbd7 {[%clk 0:02:53.4]} 12. Rc1 {[%clk 0:02:32.6]}
12... h5 {[%clk 0:02:52.3]} 13. Kh1 {[%clk 0:02:28.8]} 13... h4 {[%clk
0:02:52.2]} 14. Qf2 {[%clk 0:02:25.9]} 14... Rc8 {[%clk 0:02:49.9]} 15. Bg5
{[%clk 0:02:25.3]} 15... Qb8 {[%clk 0:02:43.1]} 16. Bxh4 {[%clk 0:02:19.6]}
16... Ne5 {[%clk 0:02:39]} 17. Bg3 {[%clk 0:02:18.3]} 17... Nh5 {[%clk
0:02:32.4]} 18. Kg1 {[%clk 0:02:09.1]} 18... Nxc4 {[%clk 0:02:16.6]} 19. Na4
{[%clk 0:02:01.6]} 19... b5 {[%clk 0:01:54]} 20. Bxc4 {[%clk 0:02:00.4]} 20...
Rxc4 {[%clk 0:01:50.8]} 21. Rxc4 {[%clk 0:01:52.4]} 21... bxc4 {[%clk
0:01:51.7]} 22. Nb6 {[%clk 0:01:49]} 22... Nxg3 {[%clk 0:01:50.3]} 23. hxg3
{[%clk 0:01:46.7]} 23... Qc7 {[%clk 0:01:48.1]} 24. Na4 {[%clk 0:01:34.1]} 24...
Qa5 {[%clk 0:01:47.7]} 25. Qc2 {[%clk 0:01:21.3]} 25... Qg5 {[%clk 0:01:44]} 26.
Kf2 {[%clk 0:01:14.2]} 26... d5 {[%clk 0:01:35.7]} 27. exd5 {[%clk 0:01:13.3]}
27... Bxd5 {[%clk 0:01:31.2]} 28. b3 {[%clk 0:01:06.4]} 28... cxb3 {[%clk
0:01:20]} 29. Qc8+ {[%clk 0:01:04.3]} 29... Bd8 {[%clk 0:01:19.7]} 30. f4 {[%clk
0:00:57.9]} 30... Qf6 {[%clk 0:01:15.7]} 31. Nxb3 {[%clk 0:00:50]} 31... Rh2
{[%clk 0:01:01.4]} 32. Rg1 {[%clk 0:00:49.9]} 32... g5 {[%clk 0:00:59.3]} 33.
Qc3 {[%clk 0:00:47.4]} 33... Qxc3 {[%clk 0:00:52.3]} 34. Nxc3 {[%clk 0:00:46.8]}
34... Bb6+ {[%clk 0:00:52.8]} 35. Kf1 {[%clk 0:00:46.9]} 35... Bxg1 {[%clk
0:00:52.5]} 36. Kxg1 {[%clk 0:00:46.3]} 36... Rxg2+ {[%clk 0:00:51.8]} 37. Kf1
{[%clk 0:00:46.6]} 37... Rxg3 {[%clk 0:00:51.7]} 38. fxg5 {[%clk 0:00:46.1]} 0-1